{"text_format":"1","workbook":"xlsx","n_sheets":3,"sheets":["Cloud Order Required Info","Finance Approval Form","Data"],"not_rendered":{"charts":0,"images":0,"macros":1,"external_links":0,"defined_names":0,"comments":2,"pivot_tables":0},"unopened":[],"bounds":{"document_bytes":16777216,"sheet_cells":100000,"rows_first":2000,"rows_last":500,"rows_between":2000,"halvings":0,"cell_chars":16384,"cell_head_chars":4096},"cells_cut":0,"cells_raw":0,"read":"whole","date_system":"1900"}

{"sheet":"Cloud Order Required Info","index":0,"n_rows":57,"n_cols":19,"rows_kept":57,"cut":false,"hidden":false,"merged":[[17,0,17,1],[13,0,13,1],[5,0,5,1],[1,0,1,1],[26,0,26,1]]}
[]
["Supporting Documents and Confirmations:"]
["PDF of Reseller PO Attached",null,null,{"$f":"IF(F3>=3,\"Complete\",\"Incomplete\")","v":"Incomplete"},null,{"$f":"LEN(B3)","v":0},{"$f":"IF(B3=\"Complete\",\"1\",\"0\")","v":"0"}]
["Automatic Renewal Confirmed",null,null,{"$f":"IF(B4>=8,\"Complete\",\"Incomplete\")","v":"Incomplete"},null,{"$f":"LEN(B4)","v":0},{"$f":"IF(B4=\"Complete\",\"1\",\"0\")","v":"0"}]
[null,null,null,null,null,"Text Length","Total Completes",null,"States",null,null,"Billing Model"]
["Deal Information:"]
["Cisco DEAL ID:","  ",null,{"$f":"IF(F7>=8,\"Complete\",\"Incomplete\")","v":"Incomplete"},null,{"$f":"LEN(B7)","v":2},{"$f":"IF(D7=\"Complete\",\"1\",\"0\")","v":"0"},null,null,null,null,"Prepaid"]
["Reseller's SYNNEX Billing Account #:",null,null,{"$f":"IF(F8>=5,\"Complete\",\"Incomplete\")","v":"Incomplete"},null,0,{"$f":"IF(D8=\"Complete\",\"1\",\"0\")","v":"0"},null,"AL","Alabama",null,"Monthly"]
["Payment Terms:"," ",null,{"$f":"IF(F9>=4,\"Complete\",\"Incomplete\")","v":"Incomplete"},null,1,"0",null,"AK","Alaska",null,"Quarterly"]
["Billing Model:",null,null,{"$f":"IF(F10>=6,\"Complete\",\"Incomplete\")","v":"Incomplete"},null,0,"0",null,"AZ","Arizona",null,"Yearly/Annual"]
["Requested Start Date:",null,null,{"$f":"IF(F11>=5,\"Complete\",\"Incomplete\")","v":"Incomplete"},null,0,"0",null,"AR","Arkansas",null,null,null,"Anything greater than 90 days from today will need to be setup in the deal ID",null,null,null,null,{"$f":"TODAY()+90","v":"2023-07-24"}]
["End User Smart Account (domain name):",null,null,{"$f":"IF(F12>=6,\"Complete\",\"Incomplete\")","v":"Incomplete"},null,0,"0",null,"CA","California"]
[null,null,null,null,null,null,null,null,"CO","Colorado"]
["Provisioning Admin Contact:",null,null,null,null,0,0,null,"CT","Connecticut",null,null,null,"Note:"]
["First and Last Name",null,null,{"$f":"IF(F15>=5,\"Complete\",\"Incomplete\")","v":"Incomplete"},null,{"$f":"LEN(B15)","v":0},"0",null,"DE","Delaware",null,null,null,"Provising contact - Admin who needs control of subscription"]
["Email Address",null,null,{"$f":"IF(F16>=8,\"Complete\",\"Incomplete\")","v":"Incomplete"},null,0,"0",null,"FL","Florida",null,null,null,"Security subscriptions may require end user to provision"]
[null,null,null,null,null,null,null,null,"GA","Georgia"]
["End User Technical Contact:",null,null,null,null,null,null,null,"HI","Hawaii"]
["First and Last Name",null,null,{"$f":"IF(F19>=5,\"Complete\",\"Incomplete\")","v":"Incomplete"},null,{"$f":"LEN(B19)","v":0},"0",null,"ID","Idaho",null,null,null,"Who at end user"]
["Street Address",null,null,{"$f":"IF(F20>=8,\"Complete\",\"Incomplete\")","v":"Incomplete"},null,0,"0",null,"IL","Illinois",null,null,null,"Admin at end user, may be contacted directly by Cisco during provising process"]
["City",null,null,{"$f":"IF(F21>=3,\"Complete\",\"Incomplete\")","v":"Incomplete"},null,0,"0",null,"IN","Indiana"]
["State",null,null,{"$f":"IF(F22>=2,\"Complete\",\"Incomplete\")","v":"Incomplete"},null,0,"0",null,"IA","Iowa"]
["Zip",null,null,{"$f":"IF(F23>=5,\"Complete\",\"Incomplete\")","v":"Incomplete"},null,0,"0",null,"KS","Kansas"]
["Telephone",null,null,{"$f":"IF(F24>=10,\"Complete\",\"Incomplete\")","v":"Incomplete"},null,0,"0",null,"KY","Kentucky"]
["Email Address",null,null,"Incomplete",null,0,"0",null,"LA","Louisiana"]
[null,null,null,null,null,{"$f":"LEN(#REF!)","v":{"$error":"#REF!"}},null,null,"ME","Maine"]
["Reseller Contact Information",null,null,null,null,null,null,null,"MD","Maryland"]
["First and Last Name",null,null,{"$f":"IF(B28>=5,\"Complete\",\"Incomplete\")","v":"Incomplete"},null,null,null,null,"MA","Massachusetts",null,null,null,"This is the reseller contact that will receive notifications related to the order and subscription"]
["Email Address",null,null,{"$f":"IF(B29>=8,\"Complete\",\"Incomplete\")","v":"Incomplete"},null,null,null,null,"MI","Michigan"]
["Reseller BID",null,null,{"$f":"IF(B30>=6,\"Complete\",\"Incomplete\")","v":"Incomplete"},null,null,null,null,"MN","Minnesota",null,null,null,"Preferred ID in CCW (this is a #)"]
[null,null,null,null,null,null,null,null,"MN","Minnesota"]
[null,null,null,null,null,null,null,null,"MO","Missouri"]
[null,null,null,null,null,null,null,null,"MT","Montana"]
[null,null,null,null,null,null,null,null,"NE","Nebraska"]
[null,null,null,null,null,null,null,null,"NV","Nevada"]
[null,null,null,null,null,null,null,null,"NH","New Hampshire"]
[null,null,null,null,null,null,null,null,"NJ","New Jersey"]
[null,null,null,null,null,null,null,null,"NM","New Mexico"]
[null,null,null,null,null,null,null,null,"NY","New York"]
[null,null,null,null,null,null,null,null,"NC","North Carolina"]
[null,null,null,null,null,null,null,null,"ND","North Dakota"]
[null,null,null,null,null,null,null,null,"OH","Ohio"]
[null,null,null,null,null,null,null,null,"OK","Oklahoma"]
[null,null,null,null,null,null,null,null,"OR","Oregon"]
[null,null,null,null,null,null,null,null,"PA","Pennsylvania"]
[null,null,null,null,null,null,null,null,"RI","Rhode Island"]
[null,null,null,null,null,null,null,null,"SC","South Carolina"]
[null,null,null,null,null,null,null,null,"SD","South Dakota"]
[null,null,null,null,null,null,null,null,"TN","Tennessee"]
[null,null,null,null,null,null,null,null,"TX","Texas"]
[null,null,null,null,null,null,null,null,"UT","Utah"]
[null,null,null,null,null,null,null,null,"VT","Vermont"]
[null,null,null,null,null,null,null,null,"VA","Virginia"]
[null,null,null,null,null,null,null,null,"WA","Washington"]
[null,null,null,null,null,null,null,null,"WV","West Virginia"]
[null,null,null,null,null,null,null,null,"WI","Wisconsin"]
[null,null,null,null,null,null,null,null,"WY","Wyoming"]

{"sheet":"Finance Approval Form","index":1,"n_rows":13,"n_cols":10,"rows_kept":13,"cut":false,"hidden":true,"merged":[[0,0,0,1]]}
["Finance Approval Template"]
["Resellers SYNNEX Account #:",{"$f":"IFERROR(('Cloud Order Required Info'!B8),\" \")","v":0},null,null,null,{"$f":"LEN(B2)","v":1},{"$f":"IF(D2=\"Complete\",\"1\",\"0\")","v":"0"},null,"Billing Term","Divider"]
["Payment Terms",{"$f":"IFERROR(('Cloud Order Required Info'!B9),\" \")","v":" "}]
["Reseller Name:"," ",null,{"$f":"IF(F4>=3,\"Complete\",\"Incomplete\")","v":"Incomplete"},null,{"$f":"LEN(B4)","v":1},{"$f":"IF(D4=\"Complete\",\"1\",\"0\")","v":"0"},null,"Prepaid",{"$f":"B7","v":" "}]
["Full Legal Name of End User:"," ",null,{"$f":"IF(F5>=4,\"Complete\",\"Incomplete\")","v":"Incomplete"},null,1,{"$f":"IF(D5=\"Complete\",\"1\",\"0\")","v":"0"},null,"Annually",12]
["Billing Model",{"$f":"IFERROR(('Cloud Order Required Info'!B10),\" \")","v":0},null,null,null,1,"0",null,"Quarterly",4]
["Length of Term (# of Months)"," ",null,{"$f":"IF(F7>=1,\"Complete\",\"Incomplete\")","v":"Complete"},null,1,"1",null,"Monthly",1]
["Net Purchase Price in CCW"," ",null,{"$f":"IF(F8>=2,\"Complete\",\"Incomplete\")","v":"Incomplete"},null,{"$f":"LEN(B8)","v":1},{"$f":"IF(D8=\"Complete\",\"1\",\"0\")","v":"0"}]
["Total Billing Amount"," ",null,{"$f":"IF(F9>=2,\"Complete\",\"Incomplete\")","v":"Incomplete"},null,{"$f":"LEN(B9)","v":1},{"$f":"IF(D9=\"Complete\",\"1\",\"0\")","v":"0"},null,null,{"$f":"VLOOKUP(B6,I2:J7,2,FALSE)","v":{"$error":"#N/A"}}]
["Billing Amount per Term",{"$f":"IFERROR(((B9/B7)*J9),\" \")","v":" "},null,null,null,{"$f":"LEN(B10)","v":1},{"$f":"IF(D10=\"Complete\",\"1\",\"0\")","v":"0"}]
["Gross Margin %",{"$f":"IFERROR(((B9-B8)/B9*100),\" \")","v":" "},null,null,null,1,"0"]
["Vendor/Product","Cisco SaaS"]
[null,null,null,null,null,null,null,null,"CT","Connecticut"]

{"sheet":"Data","index":2,"n_rows":11,"n_cols":5,"rows_kept":11,"cut":false,"hidden":true,"merged":[]}
[]
["Payment Type","Payment Term","Email address",null,"Billing Model"]
["NET",15,null,null,"Monthly"]
["Flooring",20,null,null,"Yearly"]
["CCARD",30,null,null,"Prepaid"]
["Lockbox",45]
[null,60]
[null,90]
[null,"AMEX"]
[null,"Mastercard"]
[null,"Visa"]